fUSD/lending_fUSD_20240829
["ID","MTS","AMOUNT","RATE_DAILY","PERIOD"]
[336584800,1724957966143,-215.77,0.00039,31]
[336584801,1724957966190,-215.77,0.00039,31]
[336584802,1724957966238,-215.77,0.00039,31]
[336584803,1724957966284,-215.77,0.00039,31]
[336584804,1724957966332,-215.77,0.00039,31]
[336584805,1724957966379,-215.77,0.00039,31]
[336584806,1724957966428,-215.77,0.00039,31]
[336584807,1724957966472,-155.16580776,0.00039016,30]
[336584808,1724957966518,-800.0,0.00039123,120]
[336584809,1724957966562,-150.0,0.00039166,120]
[336584810,1724957966607,-150.0,0.000392,30]
[336584811,1724957966653,-364.68,0.00039254,120]
[336584812,1724957966699,-2000.0,0.00039315,120]
[336584813,1724957966743,-200.0,0.00039315,120]
[336584814,1724957966787,-7194.27644083,0.00039316,120]
[336584815,1724957966830,-454.07648576,0.00039316,120]
[336584816,1724957966873,-331.082919,0.00039398,119]
[336584817,1724957966917,-569.61466445,0.000394,30]
[336584818,1724957966960,-9215.18436864,0.000394,30]
[336584819,1724957967003,-11799.80227,0.00039408,30]
[336584820,1724957967048,-150.0,0.00039427,120]
[336584821,1724957967094,-1356650.0,0.0003944,30]
[336584822,1724957967143,-603.30798687,0.00039452,120]
[336584823,1724957967191,-1267.56,0.00039452,120]
[336584824,1724957967239,-271.082919,0.00039498,119]
[336584825,1724957967286,-5756.09597208,0.000395,30]
[336584826,1724957967338,-5000.0,0.000395,120]
[336584827,1724957967391,-10801.07938808,0.000395,120]
[336584828,1724957967439,-5637.59,0.00039529,74]
[336584829,1724957967491,-150.0,0.00039569,120]
[336584830,1724957967537,-272.33650293,0.00039585,30]
[336584831,1724957967593,-847.08330523,0.00039588,30]
[336584832,1724957967639,-412.47894593,0.00039588,30]
[336584833,1724957967689,-151.0,0.00039589,120]
[336584834,1724957967734,-847.08330523,0.00039591,30]
[336584835,1724957967779,-7303.81346467,0.000396,30]
[336584836,1724957967822,-150.0,0.00039603,120]
[336584837,1724957967865,-272.33650293,0.00039603,30]
[336584838,1724957967907,-11799.80227,0.00039608,30]
[336584839,1724957967950,-2777.28545884,0.00039613,30]
[336584840,1724957967994,-847.08330523,0.00039616,30]
[336584841,1724957968035,-2777.28545884,0.00039624,30]
[336584842,1724957968078,-3206.56906476,0.00039624,30]
[336584843,1724957968121,-412.47894593,0.00039626,30]
[336584844,1724957968164,-2777.28545884,0.00039628,30]
[336584845,1724957968206,-2777.28545884,0.00039632,30]
[336584846,1724957968252,-412.47894593,0.00039632,30]
[336584847,1724957968297,-3206.56906476,0.00039637,30]
[336584848,1724957968343,-412.47894593,0.0003965,30]
[336584849,1724957968387,-272.33650293,0.00039651,30]
[336584850,1724957968433,-847.08330523,0.00039656,30]
[336584851,1724957968477,-3206.56906476,0.00039656,30]
[336584852,1724957968520,-412.47894593,0.0003966,30]
[336584853,1724957968564,-3206.56906476,0.0003967,30]
[336584854,1724957968606,-2777.28545884,0.00039673,30]
[336584855,1724957968651,-847.08330523,0.00039682,30]
[336584856,1724957968694,-272.33650293,0.00039686,30]
[336584857,1724957968738,-3206.56906476,0.00039693,30]
[336584858,1724957968781,-272.33650293,0.00039699,30]
[336584859,1724957968831,-4500.0,0.000397,120]
[336584860,1724957968875,-41714.17005201,0.000397,30]
[336584861,1724957968920,-5000.0,0.00039726,30]
[336584862,1724957969258,-5000.0,0.00039726,30]
[336584863,1724957969304,-5000.0,0.00039726,30]
[336584864,1724957969348,-5000.0,0.00039726,30]
[336584865,1724957969395,-5000.0,0.00039726,30]
[336584866,1724957969440,-5000.0,0.00039726,30]
[336584867,1724957969485,-5000.0,0.00039726,30]
[336584868,1724957969529,-5000.0,0.00039726,30]
[336584869,1724957969577,-5000.0,0.00039726,30]
[336584870,1724957969627,-1976.83357007,0.00039726,30]
[336584871,1724957969672,-150.0,0.00039748,120]
[336584872,1724957969720,-15000.0,0.0003976,30]
[336584873,1724957969765,-150924.1596633,0.0003978,30]
[336584874,1724957969813,-119385.69596795,0.0003978,30]
[336584875,1724957969858,-212210.1395246,0.000398,30]
[336584876,1724957969907,-2155.704365,0.000398,120]
[336584877,1724957969952,-4755.5,0.000398,120]
[336584878,1724957969998,-48975.11425957,0.000398,120]
[336584879,1724957970045,-305153.37152843,0.000398,30]
[336584880,1724957970092,-28000.0,0.000398,30]
[336584881,1724957970138,-11799.80227,0.00039808,30]
[336584882,1724957970190,-20000.0,0.0003982,120]
[336584883,1724957970235,-6320.0,0.0003984,120]
[336584884,1724957970280,-150.0,0.0003985,30]
[336584885,1724957970324,-423.32931107,0.0003988,30]
[336584886,1724957970370,-281.2158387,0.00039898,120]
[336584887,1724957970414,-578.87908197,0.00039898,90]
[336584888,1724957970458,-787.63938079,0.00039898,90]
[336584889,1724957970504,-2631.65401379,0.00039899,64]
[336584890,1724957970548,-763.24477931,0.000399,90]
[336584891,1724957970593,-1740.27179697,0.000399,120]
[336584892,1724957970636,-179.14161949,0.000399,60]
[336584893,1724957970685,-150000.0,0.000399,30]
[336584894,1724957970732,-673.0,0.0003993,50]
[336584895,1724957970781,-326396.3468408,0.00039994,30]
[336584896,1724957977486,-150.0,0.00032705,120]
[336584897,1724957977578,-4999850.0,0.00039994,30]
[336584898,1724957983989,-4673752.6531592,0.00039994,30]
[336584899,1724957984035,-326247.3468408,0.00039997,40]
[336584900,1724957996226,-4668605.3731592,0.00039997,40]
[336584901,1724957996271,-253.9152439,0.00039998,120]
[336584902,1724957996317,-10955.06698069,0.00039999,120]
[336584903,1724957996360,-2659.13145438,0.00039999,120]
[336584904,1724957996406,-250.0,0.00039999,30]
[336584905,1724957996452,-50000.0,0.0004,30]
[336584906,1724957996499,-50000.0,0.0004,40]
[336584907,1724957996541,-503.34783495,0.0004,120]
[336584908,1724957996585,-477.12749073,0.0004,30]
[336584909,1724957996629,-765.31393753,0.0004,120]
[336584910,1724957996679,-436.1226428,0.0004,120]
[336584911,1724957996722,-280.44463518,0.0004,30]
[336584912,1724957996765,-1584.67243409,0.0004,120]
[336584913,1724957996808,-799.1479502,0.0004,120]
[336584914,1724957996856,-322.48889707,0.0004,120]
[336584915,1724957996901,-467.42288073,0.0004,30]
[336584916,1724957996946,-1167.60006171,0.0004,120]
[336584917,1724957996993,-2476.7405917,0.0004,120]
[336584918,1724957997036,-389.06808079,0.0004,120]
[336584919,1724957997079,-227.57828387,0.0004,30]
[336584920,1724957997123,-1688.67797467,0.0004,120]
[336584921,1724957997168,-311.31306962,0.0004,120]
[336584922,1724957997214,-2752.40386795,0.0004,120]
[336584923,1724957997260,-502.50793921,0.0004,120]
[336584924,1724957997308,-5000.0,0.0004,120]
[336584925,1724957997355,-5000.0,0.0004,120]
[336584926,1724957997400,-600.0,0.0004,120]
[336584927,1724957997445,-692.0,0.0004,120]
[336584928,1724957997491,-2877.13765325,0.0004,30]
[336584929,1724957997537,-378.81,0.0004,120]
[336584930,1724957997580,-7526.97065024,0.0004,120]
[336584931,1724957997627,-1030.0,0.0004,120]
[336584932,1724957997677,-2000.0,0.0004,120]
[336584933,1724957997723,-177019.61628554,0.0004,120]
[336584934,1724958018895,-550.72854199,0.00030613,30]
[336584935,1724958018993,-15043.58008315,0.00039774,40]
[336584936,1724958019047,-822980.38371446,0.0004,120]
[336584937,1724958019104,-1372.59,0.0004,120]
[336584938,1724958019156,-4208.0,0.0004,120]
[336584939,1724958019207,-222.0,0.0004,120]
[336584940,1724958019257,-33750.0,0.0004,120]
[336584941,1724958019308,-1516.1273476,0.0004,120]
[336584942,1724958019366,-250.0,0.0004,120]
[336584943,1724958019420,-3000.0,0.0004,75]
[336584944,1724958019478,-150.0,0.0004,120]
[336584945,1724958019529,-324.0,0.0004,120]
[336584946,1724958019581,-3016.0,0.0004,60]
[336584947,1724958019633,-500000.0,0.0004,100]
[336584948,1724958019687,-700.0,0.0004,120]
[336584949,1724958019738,-11000.0,0.0004,120]
[336584950,1724958019788,-267.39812644,0.0004,60]
[336584951,1724958019836,-10356.19660768,0.0004,120]
[336584952,1724958019884,-318.33899575,0.0004,30]
[336584953,1724958019935,-1046.68122321,0.0004,30]
[336584954,1724958019985,-900.0,0.0004,120]
[336584955,1724958020036,-7941.76666577,0.0004,120]
[336584956,1724958020087,-20293.0,0.0004,120]
[336584957,1724958020135,-3267.88,0.0004,120]
[336584958,1724958020185,-15175.17926745,0.0004,120]
[336584959,1724958020235,-163.53340457,0.0004,120]
[336584960,1724958020287,-10000.0,0.0004,120]
[336584961,1724958020339,-27310.62537494,0.0004,30]
[336584962,1724958020391,-26839.1,0.0004,30]
[336584963,1724958020445,-78285.38402447,0.0004,120]
[336584964,1724958020495,-493.35637766,0.0004,120]
[336584965,1724958020544,-250000.0,0.0004,30]
[336584966,1724958020594,-6712.70609712,0.0004,30]
[336584967,1724958020651,-15006.0,0.0004,30]
[336584968,1724958020700,-5404.83568536,0.0004,120]
[336584969,1724958020750,-50000.0,0.0004,30]
[336584970,1724958020803,-10000.0,0.0004,120]
[336584971,1724958020852,-26329.67541895,0.0004,120]
[336584972,1724958020900,-200.0,0.0004,120]
[336584973,1724958020949,-2566.8,0.0004,120]
[336584974,1724958020999,-1000000.0,0.0004,120]
[336584975,1724958021046,-911001.54511349,0.0004,30]
[336584976,1724958021094,-1736.23467803,0.0004,120]
[336584977,1724958021142,-3252.36583004,0.0004,120]
[336584978,1724958021191,-1982.42568277,0.0004,120]
[336584979,1724958021247,-832.91,0.0004,120]
[336584980,1724958021300,-155.539485,0.0004,43]
[336584981,1724958021350,-824.79,0.0004,120]
[336584982,1724958021406,-346.63,0.0004,120]
[336584983,1724958021458,-853.79,0.0004,120]
[336584984,1724958021506,-361.7,0.0004,120]
[336584985,1724958021560,-1267.56,0.0004,120]
[336584986,1724958021617,-12500.0,0.0004,120]
[336584987,1724958021669,-338.35,0.0004,120]
[336584988,1724958021721,-12500.0,0.00040063,120]
[336584989,1724958021773,-2500.0,0.00040073,90]
[336584990,1724958021823,-150.0,0.00040083,120]
[336584991,1724958021874,-150.0,0.00040115,120]
[336584992,1724958021926,-12500.0,0.00040125,120]
[336584993,1724958021978,-150.0,0.00040129,120]
[336584994,1724958022029,-5679.99,0.0004018,60]
[336584995,1724958022079,-12500.0,0.00040188,120]
[336584996,1724958022128,-191791.9043734,0.000402,120]
[336584997,1724958022178,-11799.80227,0.00040208,30]
[336584998,1724958022231,-12500.0,0.0004025,120]
[336584999,1724958022285,-150.0,0.00040282,120]
[336585000,1724958022339,-160.03,0.000403,120]
[336585001,1724958022395,-173.07,0.000403,120]
[336585002,1724958022451,-12500.0,0.00040313,120]
[336585003,1724958022506,-2000.0,0.00040315,120]
[336585004,1724958022560,-12500.0,0.00040375,120]
[336585005,1724958022617,-2011.35083235,0.000404,120]
[336585006,1724958022675,-1263.68934736,0.000404,120]
[336585007,1724958022731,-315.44655533,0.000404,120]
[336585008,1724958022782,-11799.80227,0.00040408,30]
[336585009,1724958022837,-12500.0,0.00040438,120]
[336585010,1724958022888,-420364.0,0.0004044,30]
[336585011,1724958022942,-359625.20660566,0.0004049,30]
[336585381,1724958168142,152.52,0.00010959,2]
[336585383,1724958303305,150.0,0.0001099,2]
[336585384,1724958326566,914.0,0.00024,120]
[336585385,1724958519643,-1074.24,0.00022861,30]
[336585386,1724958521218,-320.0,0.00025331,120]
[336585387,1724958521243,-2000.0,0.00025684,120]
[336585388,1724958521269,-200.0,0.00025984,120]
[336585389,1724958521295,-1074.24,0.00026022,30]
[336585390,1724958521323,-2000.0,0.00027034,120]
[336585391,1724958521349,-2000.0,0.00027397,30]
[336585392,1724958521373,-2000.0,0.00027397,30]
[336585393,1724958521398,-2000.0,0.00027397,30]
[336585394,1724958521423,-2000.0,0.00027397,30]
[336585395,1724958521448,-2000.0,0.00027397,30]
[336585396,1724958521472,-2000.0,0.00027397,30]
[336585397,1724958521497,-2000.0,0.00027397,30]
[336585398,1724958521523,-2000.0,0.00027397,30]
[336585399,1724958521547,-2000.0,0.00027397,30]
[336585400,1724958521570,-2000.0,0.00027397,30]
[336585401,1724958521594,-2000.0,0.00027397,30]
[336585402,1724958521617,-2000.0,0.00027397,30]
[336585403,1724958521641,-2000.0,0.00027397,30]
[336585404,1724958521664,-2000.0,0.00027397,30]
[336585405,1724958521688,-2000.0,0.00027397,30]
[336585406,1724958521711,-2000.0,0.00027397,30]
[336585407,1724958521735,-2000.0,0.00027397,30]
[336585408,1724958521762,-2000.0,0.00027397,30]
[336585409,1724958521791,-2000.0,0.00027397,30]
[336585410,1724958521815,-955.66230677,0.00027397,30]
[336585411,1724958521842,-200.0,0.00027397,60]
[336585412,1724958521867,-1010.41,0.00027397,30]
[336585413,1724958521895,-150.0,0.00027918,120]
[336585414,1724958521923,-320.0,0.00028145,120]
[336585415,1724958521947,-2000.0,0.00028384,120]
[336585416,1724958521972,-1197.22748247,0.00028767,120]
[336585417,1724958521998,-1800.0,0.00029,30]
[336585418,1724958522024,-1074.24,0.00029183,30]
[336585419,1724958522059,-2000.0,0.00029734,120]
[336585420,1724958522085,-1800.0,0.0003,31]
[336585421,1724958522110,-200.0,0.00030137,60]
[336585422,1724958522134,-150.0,0.0003022,120]
[336585423,1724958522160,-548.0,0.00030613,30]
[336585424,1724958522186,-500.0,0.00030836,120]
[336585425,1724958522212,-320.0,0.0003096,120]
[336585426,1724958522237,-2000.0,0.00031084,120]
[336585427,1724958522260,-200.0,0.00031084,120]
[336585428,1724958522300,-1800.0,0.00032,33]
[336585429,1724958522326,-1074.24,0.00032344,30]
[336585430,1724958522352,-2302.43838883,0.00032392,30]
[336585431,1724958522378,-1061.07672252,0.00032392,30]
[336585432,1724958522404,-2000.0,0.00032876,120]
[336585433,1724958522428,-200.0,0.00032877,60]
[336585434,1724958522456,-150.0,0.00033136,120]
[336585435,1724958522484,-215.77,0.000335,31]
[336585436,1724958522510,-215.77,0.000335,31]
[336585437,1724958522539,-215.77,0.000335,31]
[336585438,1724958522567,-215.77,0.000335,31]
[336585439,1724958522922,-215.77,0.000335,31]
[336585440,1724958522949,-215.77,0.000335,31]
[336585441,1724958522974,-215.77,0.000335,31]
[336585442,1724958523000,-215.77,0.000335,31]
[336585443,1724958523027,-215.77,0.000335,31]
[336585444,1724958523054,-215.77,0.000335,31]
[336585445,1724958523081,-215.77,0.000335,31]
[336585446,1724958523107,-215.77,0.000335,31]
[336585447,1724958523131,-768.0,0.00033674,30]
[336585448,1724958523156,-320.0,0.00033774,120]
[336585449,1724958523181,-2302.43838883,0.00033892,30]
[336585450,1724958523204,-1800.0,0.00034,35]
[336585451,1724958523229,-2000.0,0.00034669,120]
[336585452,1724958523253,-1774.458019,0.000348,30]
[336585453,1724958523279,-2365.944025,0.00035,30]
[336585454,1724958523303,-1800.0,0.00035,36]
[336585455,1724958523332,-215.77,0.000351,31]
[336585456,1724958523360,-215.77,0.000351,31]
[336585457,1724958523388,-215.77,0.000351,31]
[336585458,1724958523415,-215.77,0.000351,31]
[336585459,1724958523442,-215.77,0.000351,31]
[336585460,1724958523470,-215.77,0.000351,31]
[336585461,1724958523496,-215.77,0.000351,31]
[336585462,1724958523523,-215.77,0.000351,31]
[336585463,1724958523550,-215.77,0.000351,31]
[336585464,1724958523576,-215.77,0.000351,31]
[336585465,1724958523603,-215.77,0.000351,31]
[336585466,1724958523629,-215.77,0.000351,31]
[336585467,1724958523657,-215.77,0.000351,31]
[336585468,1724958523684,-215.77,0.000351,31]
[336585469,1724958523710,-215.77,0.000351,31]
[336585470,1724958523739,-215.77,0.000351,31]
[336585471,1724958523768,-215.77,0.000351,31]
[336585472,1724958523797,-215.77,0.000351,31]
[336585473,1724958523825,-215.77,0.000351,31]
[336585474,1724958523852,-215.77,0.000351,31]
[336585475,1724958523881,-215.77,0.000351,31]
[336585476,1724958523912,-215.77,0.000351,31]
[336585477,1724958523941,-215.77,0.000351,31]
[336585478,1724958523970,-215.77,0.000351,31]
[336585479,1724958523999,-2302.43838883,0.00035392,30]
[336585480,1724958524027,-2957.430032,0.000355,30]
[336585481,1724958524052,-1074.24,0.00035506,30]
[336585482,1724958524077,-3548.916038,0.000356,30]
[336585483,1724958524102,-249.94506666,0.00035616,60]
[336585484,1724958524127,-3548.916038,0.000357,30]
[336585485,1724958524153,-4140.402045,0.000358,30]
[336585486,1724958524179,-3548.916038,0.0003582,30]
[336585487,1724958524205,-1438.3646202,0.00036,37]
[336585488,1724958524231,-500.0,0.00036378,120]
[336585489,1724958524257,-500.0,0.00036378,120]
[336585490,1724958524282,-2000.0,0.00036461,120]
[336585491,1724958524308,-150.0,0.00036628,120]
[336585492,1724958524335,-215.77,0.000367,31]
[336585493,1724958524362,-215.77,0.000367,31]
[336585494,1724958524389,-215.77,0.000367,31]
[336585495,1724958524417,-215.77,0.000367,31]
[336585496,1724958524443,-215.77,0.000367,31]
[336585497,1724958524471,-215.77,0.000367,31]
[336585498,1724958524501,-215.77,0.000367,31]
[336585499,1724958524531,-215.77,0.000367,31]
[336585500,1724958524560,-215.77,0.000367,31]
[336585501,1724958524588,-215.77,0.000367,31]
[336585502,1724958524616,-215.77,0.000367,31]
[336585503,1724958524643,-215.77,0.000367,31]
[336585504,1724958524670,-215.77,0.000367,31]
[336585505,1724958524698,-215.77,0.000367,31]
[336585506,1724958524727,-215.77,0.000367,31]
[336585507,1724958524756,-215.77,0.000367,31]
[336585508,1724958524994,-215.77,0.000367,31]
[336585509,1724958525025,-215.77,0.000367,31]
[336585510,1724958525061,-215.77,0.000367,31]
[336585511,1724958525089,-215.77,0.000367,31]
[336585512,1724958525116,-215.77,0.000367,31]
[336585513,1724958525145,-215.77,0.000367,31]
[336585514,1724958525173,-215.77,0.000367,31]
[336585515,1724958525200,-215.77,0.000367,31]
[336585516,1724958525226,-2302.43838883,0.00036892,30]
[336585517,1724958525252,-453.0,0.00037042,30]
[336585518,1724958525283,-150.0,0.00037719,120]
[336585519,1724958525309,-153.866949,0.00037855,120]
[336585520,1724958525335,-1551.00109549,0.00038,120]
[336585521,1724958525362,-2601.89266403,0.00038,120]
[336585522,1724958525392,-215.77,0.000382,31]
[336585523,1724958525420,-215.77,0.000382,31]
[336585524,1724958525448,-215.77,0.000382,31]
[336585525,1724958525476,-215.77,0.000382,31]
[336585526,1724958525503,-215.77,0.000382,31]
[336585527,1724958525534,-215.77,0.000382,31]
[336585528,1724958525568,-215.77,0.000382,31]
[336585529,1724958525598,-215.77,0.000382,31]
[336585530,1724958525626,-215.77,0.000382,31]
[336585531,1724958525655,-215.77,0.000382,31]
[336585532,1724958525682,-215.77,0.000382,31]
[336585533,1724958525709,-215.77,0.000382,31]
[336585534,1724958525739,-215.77,0.000382,31]
[336585535,1724958525768,-215.77,0.000382,31]
[336585536,1724958525802,-215.77,0.000382,31]
[336585537,1724958525831,-215.77,0.000382,31]
[336585538,1724958525857,-215.77,0.000382,31]
[336585539,1724958525884,-215.77,0.000382,31]
[336585540,1724958525912,-215.77,0.000382,31]
[336585541,1724958525939,-215.77,0.000382,31]
[336585542,1724958526200,-215.77,0.000382,31]
[336585543,1724958526228,-215.77,0.000382,31]
[336585544,1724958526255,-215.77,0.000382,31]
[336585545,1724958526283,-215.77,0.000382,31]
[336585546,1724958526308,-2000.0,0.00038253,120]
[336585547,1724958526334,-1109.12,0.00038356,120]
[336585548,1724958526360,-200.0,0.00038356,60]
[336585549,1724958526386,-2302.43838883,0.00038392,30]
[336585550,1724958526414,-1074.24,0.00038667,120]
[336585551,1724958526443,-1109.12,0.00038904,120]
[336585552,1724958526469,-549.46950077,0.00039,33]
[336585553,1724958526493,-764.45582726,0.00039,30]
[336585554,1724958526533,-442966.80105613,0.00039,30]
[336585555,1724958526566,-1109.12,0.00039452,120]
[336585556,1724958526595,-150.0,0.00039567,120]
[336585557,1724958526620,-2777.28545884,0.00039585,30]
[336585558,1724958526646,-272.33650293,0.00039586,30]
[336585559,1724958526672,-2777.28545884,0.00039588,30]
[336585560,1724958526698,-847.08330523,0.00039591,30]
[336585561,1724958526725,-412.47894593,0.00039598,30]
[336585562,1724958526754,-847.08330523,0.000396,30]
[336585563,1724958526784,-412.47894593,0.00039601,30]
[336585564,1724958526809,-847.08330523,0.00039608,30]
[336585565,1724958526836,-847.08330523,0.0003961,30]
[336585566,1724958526862,-412.47894593,0.00039611,30]
[336585567,1724958526887,-272.33650293,0.00039619,30]
[336585568,1724958526912,-2777.28545884,0.00039629,30]
[336585569,1724958526938,-847.08330523,0.00039631,30]
[336585570,1724958526964,-272.33650293,0.00039636,30]
[336585571,1724958526990,-272.33650293,0.00039639,30]
[336585572,1724958527017,-3206.56906476,0.00039653,30]
[336585573,1724958527043,-3206.56906476,0.00039658,30]
[336585574,1724958527069,-272.33650293,0.00039659,30]
[336585575,1724958527094,-2777.28545884,0.00039669,30]
[336585576,1724958527121,-412.47894593,0.00039669,30]
[336585577,1724958527146,-2777.28545884,0.00039671,30]
[336585578,1724958527174,-3206.56906476,0.00039672,30]
[336585579,1724958527201,-3206.56906476,0.00039694,30]
[336585580,1724958527228,-3206.56906476,0.00039697,30]
[336585581,1724958527253,-412.47894593,0.00039698,30]
[336585582,1724958527281,-5000.0,0.00039726,30]
[336585583,1724958527308,-5000.0,0.00039726,30]
[336585584,1724958527338,-5000.0,0.00039726,30]
[336585585,1724958527364,-5000.0,0.00039726,30]
[336585586,1724958527392,-5000.0,0.00039726,30]
[336585587,1724958527418,-5000.0,0.00039726,30]
[336585588,1724958527444,-5000.0,0.00039726,30]
[336585589,1724958527471,-5000.0,0.00039726,30]
[336585590,1724958527497,-5000.0,0.00039726,30]
[336585591,1724958527522,-5000.0,0.00039726,30]
[336585592,1724958527548,-5000.0,0.00039726,30]
[336585593,1724958527574,-5000.0,0.00039726,30]
[336585594,1724958527600,-5000.0,0.00039726,30]
[336585595,1724958527626,-5000.0,0.00039726,30]
[336585596,1724958527652,-5000.0,0.00039726,30]
[336585597,1724958527681,-5000.0,0.00039726,30]
[336585598,1724958527707,-5000.0,0.00039726,30]
[336585599,1724958527733,-4065.20637702,0.00039726,30]
[336585600,1724958527765,-215.77,0.000398,31]
[336585601,1724958527793,-215.77,0.000398,31]
[336585602,1724958527821,-215.77,0.000398,31]
[336585603,1724958527848,-215.77,0.000398,31]
[336585604,1724958527876,-215.77,0.000398,31]
[336585605,1724958527905,-215.77,0.000398,31]
[336585606,1724958527932,-215.77,0.000398,31]
[336585607,1724958527960,-215.77,0.000398,31]
[336585608,1724958527988,-215.77,0.000398,31]
[336585609,1724958528016,-215.77,0.000398,31]
[336585610,1724958528045,-215.77,0.000398,31]
[336585611,1724958528077,-215.77,0.000398,31]
[336585612,1724958528105,-215.77,0.000398,31]
[336585613,1724958528133,-215.77,0.000398,31]
[336585614,1724958528161,-215.77,0.000398,31]
[336585615,1724958528191,-215.77,0.000398,31]
[336585616,1724958528219,-2302.43838883,0.00039892,30]
[336585617,1724958528246,-4998565.90032532,0.0003997,30]
[336585618,1724958528274,-2659.13145538,0.00039999,120]
[336585619,1724958528304,-1046.68,0.0004,120]
[336585620,1724958528331,-5736.17,0.0004,120]
[336585621,1724958528355,-1551.00109549,0.0004,120]
[336585622,1724958528383,-2601.89266403,0.0004,120]
[336585623,1724958528407,-160.034401,0.0004,40]
[336585624,1724958528432,-1109.12,0.0004,120]
[336585625,1724958528456,-200.0,0.0004,120]
[336585626,1724958528480,-160.0,0.0004,30]
[336585627,1724958528506,-2000.0,0.00040045,120]
[336585628,1724958528534,-2500.0,0.00040073,90]
[336585629,1724958528561,-155.16580776,0.00040285,30]
[336585630,1724958528587,-150.0,0.000404,30]
[336585631,1724958528613,-261562.34562627,0.0004049,30]
[336585632,1724958535577,-924.27,0.00038356,120]
[336585633,1724958535622,-1650839.01475826,0.0004049,30]
[336585634,1724958536000,-160.034401,0.0004049,30]
[336585635,1724958536026,-263.4533938,0.000405,30]
[336585636,1724958536052,-50000.0,0.000405,30]
[336585637,1724958536078,-500000.0,0.000405,100]
[336585638,1724958536102,-12500.0,0.000405,120]
[336585639,1724958536127,-150.0,0.00040512,120]
[336585640,1724958536151,-150.0,0.00040538,120]
[336585641,1724958536174,-151.0,0.00040548,120]
[336585642,1724958536199,-12500.0,0.00040563,120]
[336585643,1724958536223,-11799.80227,0.00040608,30]
[336585644,1724958536247,-12500.0,0.00040625,120]
[336585645,1724958536271,-12500.0,0.00040688,120]
[336585646,1724958536297,-150.0,0.0004069,120]
[336585647,1724958536321,-20083.18382211,0.000407,60]
[336585648,1724958536346,-12500.0,0.0004075,120]
[336585649,1724958536370,-15532.0229913,0.000408,120]
[336585650,1724958536394,-11799.80227,0.00040808,30]
[336585651,1724958536420,-12500.0,0.00040813,120]
[336585652,1724958536447,-150.0,0.00040824,120]
[336585653,1724958536476,-150.0,0.00040865,120]
[336585654,1724958536502,-12500.0,0.00040875,120]
[336585655,1724958536530,-2184.42093886,0.000409,120]
[336585656,1724958536555,-1092.28699334,0.000409,120]
[336585657,1724958536581,-12500.0,0.00040938,120]
[336585658,1724958536606,-1000.0,0.00040999,120]
[336585659,1724958536632,-150.0,0.00040999,120]
[336585660,1724958536662,-50000.0,0.00041,41]
[336585661,1724958536690,-50000.0,0.00041,31]
[336585662,1724958536716,-50000.0,0.00041,30]
[336585663,1724958536743,-5000.0,0.00041,120]
[336585664,1724958536770,-10368.8417296,0.00041,30]
[336585665,1724958536796,-8000.0,0.00041,30]
[336585666,1724958536820,-5000.0,0.00041,120]
[336585667,1724958536844,-90000.0,0.00041,30]
[336585668,1724958536869,-30000.0,0.00041,120]
[336585669,1724958536893,-761.21557372,0.00041,120]